[Event "46th GRE-chT Premier 2018"]
[Site "Rio Achaia"]
[Date "2018.07.11"]
[Round "3"]
[White "Nikolaidis, Konstantinos"]
[Black "Gouloutis, Nikolaos"]
[Result "0-1"]
[ECO "E11"]
[WhiteElo "2182"]
[BlackElo "2382"]
[Annotator "NA"]
[PlyCount "80"]
[EventDate "2018.07.10"]
[EventType "team-tourn"]
[EventCountry "GRE"]
[SourceTitle "playchess.com"]
[Source "ChessBase"]
[SourceQuality "1"]
[TimeControl "40/5400+30:1800+30"]

1. d4 {[%emt 0:00:13]} Nf6 {[%emt 0:02:07]} 2. c4 {[%emt 0:00:23]} e6 {[%emt 0:00:03]} 3. Nf3 {[%emt 0:03:31]} Bb4+ {[%emt 0:03:18]} 4. Nbd2 {[%emt 0:03:46]} b6 {[%emt 0:00:34]} 5. g3 {[%emt 0:01:43]} Bb7 {[%emt 0:00:06]} 6. Bg2 {[%emt 0:00:21]} O-O {[%emt 0:00:08]} 7. O-O {[%emt 0:00:36]} a5 {[%emt 0:01:36]} 8. Qc2 {[%emt 0:01:58]} Bxd2 {[%emt 0:06:48]} 9. Bxd2 {[%emt 0:00:50]} Be4 {[%emt 0:00:06]} 10. Qc1 {[%emt 0:03:23]} d6 {[%emt 0:01:28]} 11. Bc3 {[%emt 0:08:08]} Nbd7 {[%emt 0:07:24]} 12. Qe3 {[%emt 0:05:41]} Qb8 {[%emt 0:05:55]} 13. Bh3 {[%emt 0:05:26]} b5 {[%emt 0:22:56]} 14. b3 {[%emt 0:02:50]} bxc4 {[%emt 0:08:21]} 15. bxc4 {[%emt 0:00:43]} Qa7 {[%emt 0:00:10]} 16. Nd2 {[%emt 0:03:23]} Bg6 {[%emt 0:00:18]} 17. Bg2 {[%emt 0:04:20]} Rae8 {[%emt 0:03:29]} 18. Bc6 {[%emt 0:09:26]} Qa6 {[%emt 0:14:00]} 19. Bb5 {[%emt 0:09:51]} Qa8 {[%emt 0:00:05]} 20. Ba4 {[%emt 0:12:52]} c6 {[%emt 0:05:28]} 21. Qf3 {[%emt 0:02:28]} d5 {[%emt 0:00:05]} 22. c5 {[%emt 0:02:58]} Qa6 {[%emt 0:03:42]} 23. Rfe1 {[%emt 0:02:40]} e5 {[%emt 0:01:43]} 24. e3 {[%emt 0:03:22]} Re6 {[%emt 0:00:23]} 25. dxe5 {[%emt 0:05:35]} Nxe5 {[%emt 0:00:48]} 26. Bxe5 {[%emt 0:00:29]} Rxe5 {[%emt 0:00:06]} 27. Qf4 {[%emt 0:01:03]} Rfe8 {[%emt 0:01:14]} 28. Qd4 {[%emt 0:00:48]} h5 {[%emt 0:00:56]} 29. Rac1 {[%emt 0:00:53]} h4 {[%emt 0:04:41]} 30. Bc2 {[%emt 0:00:57]} Be4 {[%emt 0:01:05]} 31. f3 {[%emt 0:01:28]} hxg3 {[%emt 0:05:27]} 32. hxg3 {[%emt 0:01:18]} Qc8 {[%emt 0:00:12]} 33. fxe4 {[%emt 0:01:04]} Qh3 {[%emt 0:00:18]} 34. Nf1 {[%emt 0:01:12]} Rh5 {[%emt 0:00:04]} 35. Bd1 {[%emt 0:01:14]} Qh1+ {[%emt 0:01:49]} 36. Kf2 {[%emt 0:00:09]} Rh2+ {[%emt 0:00:26]} 37. Nxh2 {[%emt 0:00:12]} Qxh2+ {[%emt 0:00:05]} 38. Kf1 {[%emt 0:00:26]} Nxe4 {[%emt 0:00:06]} 39. Qxe4 {[%emt 0:01:14]} Rxe4 {[%emt 0:00:07]} 40. Rb1 {[%emt 0:00:00]} Re6 {[%emt 0:00:00]} 0-1

[Event "46th GRE-chT Premier 2018"]
[Site "Rio Achaia"]
[Date "2018.07.11"]
[Round "3"]
[White "Tsiros, Fragkiskos Vlasios"]
[Black "Pavlidis, Pavlos"]
[Result "1-0"]
[ECO "B32"]
[WhiteElo "2181"]
[BlackElo "1906"]
[Annotator "NA"]
[PlyCount "99"]
[EventDate "2018.07.10"]
[EventType "team-tourn"]
[EventCountry "GRE"]
[SourceTitle "playchess.com"]
[Source "ChessBase"]
[SourceQuality "1"]
[TimeControl "40/5400+30:1800+30"]

1. e4 {[%emt 0:00:42]} c5 {[%emt 0:00:00]} 2. Nf3 {[%emt 0:00:43]} Nc6 {[%emt 0:00:00]} 3. d4 {[%emt 0:00:08]} cxd4 {[%emt 0:00:07]} 4. Nxd4 {[%emt 0:00:04]} g6 {[%emt 0:00:09]} 5. Ne2 {[%emt 0:01:10]} Bg7 {[%emt 0:01:19]} 6. g3 {[%emt 0:00:08]} Nf6 {[%emt 0:01:15]} 7. Bg2 {[%emt 0:00:31]} O-O {[%emt 0:01:24]} 8. O-O {[%emt 0:00:42]} d6 {[%emt 0:04:12]} 9. Nbc3 {[%emt 0:00:40]} a6 {[%emt 0:01:19]} 10. h3 {[%emt 0:00:42]} Qc7 {[%emt 0:02:00]} 11. Be3 {[%emt 0:05:02]} b5 {[%emt 0:02:17]} 12. Nd5 {[%emt 0:01:14]} Nxd5 {[%emt 0:03:18]} 13. exd5 {[%emt 0:00:06]} Ne5 {[%emt 0:03:54]} 14. b3 {[%emt 0:03:30]} Bb7 {[%emt 0:03:49]} 15. Bd4 {[%emt 0:06:53]} Rac8 {[%emt 0:04:49]} 16. f4 {[%emt 0:08:00]} Nd7 {[%emt 0:02:21]} 17. Bxg7 {[%emt 0:00:06]} Kxg7 {[%emt 0:00:04]} 18. Qd4+ {[%emt 0:00:11]} Kg8 {[%emt 0:01:13]} 19. c3 {[%emt 0:07:29]} Qc5 {[%emt 0:06:02]} 20. Qxc5 {[%emt 0:06:03]} Rxc5 {[%emt 0:00:54]} 21. b4 {[%emt 0:00:15]} Rc4 {[%emt 0:02:02]} 22. a4 {[%emt 0:00:17]} Nf6 {[%emt 0:04:02]} 23. axb5 {[%emt 0:05:28]} axb5 {[%emt 0:00:05]} 24. Rfd1 {[%emt 0:01:18]} Ra8 {[%emt 0:02:23]} 25. Rxa8+ {[%emt 0:02:47]} Bxa8 {[%emt 0:00:06]} 26. g4 {[%emt 0:01:13]} Ne4 {[%emt 0:09:17]} 27. Bxe4 {[%emt 0:05:07]} Rxe4 {[%emt 0:01:59]} 28. Kf2 {[%emt 0:00:04]} g5 {[%emt 0:00:38]} 29. fxg5 {[%emt 0:04:04]} Re5 {[%emt 0:03:40]} 30. Nf4 {[%emt 0:00:23]} Rxg5 {[%emt 0:00:46]} 31. Rd4 {[%emt 0:04:13]} Kg7 {[%emt 0:07:29]} 32. Ke3 {[%emt 0:01:25]} Re5+ {[%emt 0:03:53]} 33. Kd2 {[%emt 0:00:03]} Kf6 {[%emt 0:10:39]} 34. c4 {[%emt 0:05:23]} bxc4 {[%emt 0:01:07]} 35. Kc3 {[%emt 0:00:37]} e6 {[%emt 0:04:38]} 36. Kxc4 {[%emt 0:06:25]} exd5+ {[%emt 0:01:51]} 37. Nxd5+ {[%emt 0:02:01]} Bxd5+ {[%emt 0:01:23]} 38. Rxd5 {[%emt 0:00:07]} Ke6 {[%emt 0:01:10]} 39. Rxe5+ {[%emt 0:07:11]} dxe5 {[%emt 0:00:29]} 40. g5 {[%emt 0:00:00]} f5 {[%emt 0:00:00]} 41. gxf6 {[%emt 0:00:10]} Kxf6 {[%emt 0:09:43]} 42. Kd5 {[%emt 0:01:18]} Kf5 {[%emt 0:01:23]} 43. b5 {[%emt 0:00:03]} e4 {[%emt 0:00:10]} 44. Kd4 {[%emt 0:00:02]} Kf4 {[%emt 0:01:54]} 45. b6 {[%emt 0:00:03]} e3 {[%emt 0:00:32]} 46. b7 {[%emt 0:00:02]} e2 {[%emt 0:00:06]} 47. b8=Q+ {[%emt 0:00:06]} Kf3 {[%emt 0:00:04]} 48. Qb3+ {[%emt 0:00:28]} Kf2 {[%emt 0:00:28]} 49. Qe3+ {[%emt 0:00:06]} Kf1 {[%emt 0:00:06]} 50. Qf3+ {[%emt 0:00:08]} 1-0

[Event "46th GRE-chT Premier 2018"]
[Site "Rio Achaia"]
[Date "2018.07.11"]
[Round "3"]
[White "Tsekmes, Dimitrios"]
[Black "Grigoriadis, Mihail"]
[Result "1-0"]
[ECO "B60"]
[WhiteElo "2170"]
[BlackElo "2236"]
[Annotator "NA"]
[PlyCount "83"]
[EventDate "2018.07.10"]
[EventType "team-tourn"]
[EventCountry "GRE"]
[SourceTitle "playchess.com"]
[Source "ChessBase"]
[SourceQuality "1"]
[TimeControl "40/5400+30:1800+30"]

1. e4 {[%emt 0:00:00]} c5 {[%emt 0:09:07]} 2. Nf3 {[%emt 0:00:00]} Nc6 {[%emt 0:00:04]} 3. d4 {[%emt 0:00:02]} cxd4 {[%emt 0:00:02]} 4. Nxd4 {[%emt 0:00:02]} Nf6 {[%emt 0:00:11]} 5. Nc3 {[%emt 0:00:25]} d6 {[%emt 0:00:01]} 6. Bg5 {[%emt 0:00:55]} g6 {[%emt 0:00:03]} 7. Bxf6 {[%emt 0:11:10]} exf6 {[%emt 0:00:01]} 8. Qd2 {[%emt 0:01:20]} Bg7 {[%emt 0:00:09]} 9. O-O-O {[%emt 0:01:20]} O-O {[%emt 0:00:21]} 10. Nb3 {[%emt 0:25:02]} f5 {[%emt 0:14:09]} 11. exf5 {[%emt 0:03:42]} Bxf5 {[%emt 0:00:24]} 12. Qxd6 {[%emt 0:03:39]} Qxd6 {[%emt 0:00:06]} 13. Rxd6 {[%emt 0:00:06]} Nb4 {[%emt 0:00:04]} 14. Nd4 {[%emt 0:08:10]} Bxd4 {[%emt 0:00:50]} 15. Rxd4 {[%emt 0:00:03]} Nxc2 {[%emt 0:00:08]} 16. Rf4 {[%emt 0:01:28]} Ne1 {[%emt 0:00:10]} 17. Rxf5 {[%emt 0:00:21]} gxf5 {[%emt 0:00:03]} 18. Be2 {[%emt 0:00:03]} Nxg2 {[%emt 0:01:22]} 19. Rg1 {[%emt 0:00:02]} Kh8 {[%emt 0:00:08]} 20. Rxg2 {[%emt 0:00:14]} Rg8 {[%emt 0:00:02]} 21. Bf3 {[%emt 0:01:43]} Rxg2 {[%emt 0:06:04]} 22. Bxg2 {[%emt 0:00:04]} Rb8 {[%emt 0:00:08]} 23. Nb5 {[%emt 0:07:56]} a6 {[%emt 0:04:40]} 24. Nd6 {[%emt 0:01:10]} b6 {[%emt 0:00:02]} 25. Nxf5 {[%emt 0:01:14]} Rg8 {[%emt 0:00:33]} 26. Be4 {[%emt 0:01:17]} Rg4 {[%emt 0:00:34]} 27. Ng3 {[%emt 0:12:27]} Rh4 {[%emt 0:01:39]} 28. Kd2 {[%emt 0:00:15]} Rxh2 {[%emt 0:00:06]} 29. Ke3 {[%emt 0:00:06]} Kg7 {[%emt 0:00:41]} 30. Bd3 {[%emt 0:00:48]} a5 {[%emt 0:00:13]} 31. a4 {[%emt 0:01:32]} Kf6 {[%emt 0:01:01]} 32. b3 {[%emt 0:00:26]} Ke5 {[%emt 0:00:55]} 33. f4+ {[%emt 0:01:20]} Kd5 {[%emt 0:01:02]} 34. Bc4+ {[%emt 0:00:58]} Kd6 {[%emt 0:01:53]} 35. Bxf7 {[%emt 0:00:33]} Ke7 {[%emt 0:00:14]} 36. Bc4 {[%emt 0:00:07]} h5 {[%emt 0:00:03]} 37. Ne4 {[%emt 0:02:40]} h4 {[%emt 0:00:30]} 38. f5 {[%emt 0:00:25]} Rg2 {[%emt 0:00:37]} 39. f6+ {[%emt 0:06:38]} Kf8 {[%emt 0:00:03]} 40. f7 {[%emt 0:00:00]} h3 {[%emt 0:00:00]} 41. Nf6 {[%emt 0:01:00]} Kg7 {[%emt 0:02:31]} 42. Nd7 {[%emt 0:00:55]} 1-0

[Event "46th GRE-chT Premier 2018"]
[Site "Rio Achaia"]
[Date "2018.07.11"]
[Round "3"]
[White "Korniotis, Filippos"]
[Black "Kadianis, Georgios"]
[Result "0-1"]
[ECO "D10"]
[WhiteElo "2163"]
[BlackElo "2002"]
[Annotator "NA"]
[PlyCount "114"]
[EventDate "2018.07.10"]
[EventType "team-tourn"]
[EventCountry "GRE"]
[SourceTitle "playchess.com"]
[Source "ChessBase"]
[SourceQuality "1"]
[TimeControl "40/5400+30:1800+30"]

1. d4 {[%emt 0:00:00]} d5 {[%emt 0:02:23]} 2. c4 {[%emt 0:01:58]} c6 {[%emt 0:00:05]} 3. cxd5 {[%emt 0:00:31]} cxd5 {[%emt 0:00:06]} 4. Bf4 {[%emt 0:00:10]} Nc6 {[%emt 0:00:14]} 5. e3 {[%emt 0:00:08]} Nf6 {[%emt 0:00:10]} 6. Nc3 {[%emt 0:00:07]} a6 {[%emt 0:00:12]} 7. Bd3 {[%emt 0:00:09]} Bg4 {[%emt 0:00:35]} 8. Nge2 {[%emt 0:00:12]} e6 {[%emt 0:00:49]} 9. O-O {[%emt 0:02:00]} Be7 {[%emt 0:00:22]} 10. Rc1 {[%emt 0:00:24]} Rc8 {[%emt 0:01:57]} 11. a3 {[%emt 0:06:51]} O-O {[%emt 0:02:43]} 12. h3 {[%emt 0:00:51]} Bh5 {[%emt 0:00:19]} 13. Na4 {[%emt 0:00:35]} Nd7 {[%emt 0:08:47]} 14. Bg3 {[%emt 0:14:01]} Na5 {[%emt 0:04:52]} 15. b4 {[%emt 0:25:26]} Nc4 {[%emt 0:03:40]} 16. Bxc4 {[%emt 0:00:58]} Rxc4 {[%emt 0:01:49]} 17. Qd2 {[%emt 0:02:42]} b5 {[%emt 0:14:36]} 18. Nb2 {[%emt 0:12:51]} Bxe2 {[%emt 0:08:32]} 19. Qxe2 {[%emt 0:00:08]} Rc8 {[%emt 0:01:00]} 20. Nd3 {[%emt 0:03:14]} Nb6 {[%emt 0:01:29]} 21. Nc5 {[%emt 0:02:02]} Bxc5 {[%emt 0:00:16]} 22. dxc5 {[%emt 0:03:19]} Nc4 {[%emt 0:00:08]} 23. Rfd1 {[%emt 0:02:40]} f5 {[%emt 0:05:20]} 24. a4 {[%emt 0:03:55]} Qf6 {[%emt 0:00:32]} 25. Ra1 {[%emt 0:03:17]} Qb2 {[%emt 0:03:59]} 26. Qe1 {[%emt 0:07:54]} Ra8 {[%emt 0:04:18]} 27. h4 {[%emt 0:01:52]} Qf6 {[%emt 0:04:07]} 28. axb5 {[%emt 0:03:43]} axb5 {[%emt 0:00:12]} 29. h5 {[%emt 0:00:33]} h6 {[%emt 0:07:47]} 30. Bh2 {[%emt 0:01:33]} Qf7 {[%emt 0:03:59]} 31. Qe2 {[%emt 0:00:09]} Qb7 {[%emt 0:01:12]} 32. f3 {[%emt 0:00:32]} Rxa1 {[%emt 0:01:25]} 33. Rxa1 {[%emt 0:00:00]} Ra8 {[%emt 0:00:08]} 34. Ra2 {[%emt 0:01:10]} e5 {[%emt 0:04:21]} 35. g4 {[%emt 0:00:53]} fxg4 {[%emt 0:06:21]} 36. fxg4 {[%emt 0:00:35]} Ra4 {[%emt 0:05:18]} 37. e4 {[%emt 0:00:33]} Rxb4 {[%emt 0:01:09]} 38. Qd3 {[%emt 0:00:29]} Ra4 {[%emt 0:03:15]} 39. Rxa4 {[%emt 0:00:13]} bxa4 {[%emt 0:00:05]} 40. exd5 {[%emt 0:00:00]} Qb4 {[%emt 0:00:00]} 41. Kg2 {[%emt 0:08:42]} Qxc5 {[%emt 0:04:59]} 42. Bg1 {[%emt 0:00:01]} Qc8 {[%emt 0:02:22]} 43. Kh3 {[%emt 0:05:23]} Nd6 {[%emt 0:05:49]} 44. Qg3 {[%emt 0:11:03]} Nf7 {[%emt 0:02:31]} 45. Qd3 {[%emt 0:02:40]} e4 {[%emt 0:05:52]} 46. Qd4 {[%emt 0:02:18]} Qc2 {[%emt 0:02:11]} 47. Be3 {[%emt 0:01:38]} a3 {[%emt 0:03:33]} 48. d6 {[%emt 0:00:04]} a2 {[%emt 0:05:53]} 49. d7 {[%emt 0:00:04]} Qd3 {[%emt 0:01:05]} 50. Kh4 {[%emt 0:01:56]} Qxe3 {[%emt 0:01:35]} 51. d8=Q+ {[%emt 0:02:29]} Nxd8 {[%emt 0:00:05]} 52. Qxd8+ {[%emt 0:00:27]} Kh7 {[%emt 0:00:21]} 53. Qa8 {[%emt 0:00:02]} Qf2+ {[%emt 0:00:26]} 54. Kh3 {[%emt 0:00:02]} Qf1+ {[%emt 0:00:22]} 55. Kh2 {[%emt 0:00:22]} a1=Q {[%emt 0:01:21]} 56. Qxe4+ {[%emt 0:00:03]} Kg8 {[%emt 0:00:08]} 57. Qe8+ {[%emt 0:00:21]} Qf8 {[%emt 0:00:10]} 0-1

[Event "46th GRE-chT Premier 2018"]
[Site "Rio Achaia"]
[Date "2018.07.11"]
[Round "3"]
[White "Tassopoulos, Marios"]
[Black "Panagiotakos, Nikolaos"]
[Result "1/2-1/2"]
[ECO "A46"]
[WhiteElo "2134"]
[BlackElo "2100"]
[Annotator "NA"]
[PlyCount "63"]
[EventDate "2018.07.10"]
[EventType "team-tourn"]
[EventCountry "GRE"]
[SourceTitle "playchess.com"]
[Source "ChessBase"]
[SourceQuality "1"]
[TimeControl "40/5400+30:1800+30"]

1. d4 {[%emt 0:00:00]} Nf6 {[%emt 0:01:37]} 2. Nf3 {[%emt 0:00:00]} e6 {[%emt 0:00:08]} 3. Bf4 {[%emt 0:00:00]} c5 {[%emt 0:00:28]} 4. c3 {[%emt 0:00:09]} d5 {[%emt 0:00:16]} 5. e3 {[%emt 0:00:38]} Nc6 {[%emt 0:00:34]} 6. Bd3 {[%emt 0:00:45]} Bd6 {[%emt 0:00:39]} 7. Bg3 {[%emt 0:00:25]} O-O {[%emt 0:00:58]} 8. Nbd2 {[%emt 0:00:40]} cxd4 {[%emt 0:00:46]} 9. exd4 {[%emt 0:13:19]} Qc7 {[%emt 0:01:05]} 10. Qe2 {[%emt 0:02:34]} Re8 {[%emt 0:08:58]} 11. Bxd6 {[%emt 0:03:37]} Qxd6 {[%emt 0:00:05]} 12. Ne5 {[%emt 0:00:41]} Qe7 {[%emt 0:13:18]} 13. f4 {[%emt 0:08:10]} Nd7 {[%emt 0:03:24]} 14. O-O {[%emt 0:06:17]} Nf8 {[%emt 0:03:42]} 15. Nxc6 {[%emt 0:10:16]} bxc6 {[%emt 0:00:08]} 16. b4 {[%emt 0:00:41]} a5 {[%emt 0:02:48]} 17. a3 {[%emt 0:01:24]} f6 {[%emt 0:09:48]} 18. Nb3 {[%emt 0:03:05]} axb4 {[%emt 0:02:42]} 19. axb4 {[%emt 0:00:38]} Rxa1 {[%emt 0:00:09]} 20. Rxa1 {[%emt 0:00:06]} e5 {[%emt 0:00:08]} 21. fxe5 {[%emt 0:00:32]} fxe5 {[%emt 0:00:47]} 22. Qxe5 {[%emt 0:00:56]} Qxe5 {[%emt 0:00:39]} 23. dxe5 {[%emt 0:00:03]} Nd7 {[%emt 0:02:19]} 24. e6 {[%emt 0:29:04]} Ne5 {[%emt 0:02:54]} 25. Bf5 {[%emt 0:00:37]} Bxe6 {[%emt 0:01:45]} 26. Bxe6+ {[%emt 0:00:53]} Rxe6 {[%emt 0:00:07]} 27. Nd4 {[%emt 0:01:18]} Rf6 {[%emt 0:02:00]} 28. Re1 {[%emt 0:01:17]} Nc4 {[%emt 0:01:23]} 29. Re8+ {[%emt 0:03:01]} Kf7 {[%emt 0:00:18]} 30. Rc8 {[%emt 0:00:20]} Ne5 {[%emt 0:04:00]} 31. h3 {[%emt 0:01:24]} h5 {[%emt 0:02:26]} 32. Rc7+ {[%emt 0:01:08]} 1/2-1/2

[Event "46th GRE-chT Premier 2018"]
[Site "Rio Achaia"]
[Date "2018.07.11"]
[Round "3"]
[White "Krallis, Christos"]
[Black "Tsekouras, Theodoros"]
[Result "1-0"]
[ECO "A15"]
[WhiteElo "2132"]
[BlackElo "2210"]
[Annotator "NA"]
[PlyCount "71"]
[EventDate "2018.07.10"]
[EventType "team-tourn"]
[EventCountry "GRE"]
[SourceTitle "playchess.com"]
[Source "ChessBase"]
[SourceQuality "1"]
[TimeControl "40/5400+30:1800+30"]

1. c4 Nf6 {[%emt 0:00:32]} 2. g3 g6 {[%emt 0:01:38]} 3. Bg2 {[%emt 0:00:49]} Bg7 {[%emt 0:00:06]} 4. Nc3 {[%emt 0:00:05]} d6 {[%emt 0:00:16]} 5. e4 {[%emt 0:00:08]} c5 {[%emt 0:00:10]} 6. Nge2 {[%emt 0:00:08]} Nc6 {[%emt 0:00:06]} 7. d3 {[%emt 0:00:19]} O-O {[%emt 0:00:33]} 8. O-O {[%emt 0:00:03]} a6 {[%emt 0:02:46]} 9. a3 {[%emt 0:00:04]} Rb8 {[%emt 0:13:34]} 10. Rb1 {[%emt 0:00:08]} a5 {[%emt 0:05:21]} 11. h3 {[%emt 0:04:17]} Ne8 {[%emt 0:01:57]} 12. Be3 {[%emt 0:00:53]} Nc7 {[%emt 0:09:24]} 13. d4 {[%emt 0:00:22]} cxd4 {[%emt 0:00:41]} 14. Nxd4 {[%emt 0:00:07]} Nxd4 {[%emt 0:07:36]} 15. Bxd4 {[%emt 0:00:11]} Bxd4 {[%emt 0:03:01]} 16. Qxd4 {[%emt 0:00:07]} b5 {[%emt 0:02:59]} 17. b4 {[%emt 0:11:17]} Be6 {[%emt 0:07:28]} 18. c5 {[%emt 0:06:31]} dxc5 {[%emt 0:02:51]} 19. Qxc5 {[%emt 0:01:56]} axb4 {[%emt 0:02:45]} 20. Rfd1 {[%emt 0:03:02]} Qc8 {[%emt 0:01:52]} 21. axb4 {[%emt 0:01:19]} Na6 {[%emt 0:03:00]} 22. Qe3 {[%emt 0:00:56]} Bc4 {[%emt 0:05:16]} 23. Nd5 {[%emt 0:00:36]} Bxd5 {[%emt 0:12:15]} 24. exd5 {[%emt 0:00:27]} Qd7 {[%emt 0:00:13]} 25. Rd4 {[%emt 0:01:18]} Nc7 {[%emt 0:04:54]} 26. Re1 {[%emt 0:01:03]} Rbe8 {[%emt 0:05:21]} 27. Rc1 {[%emt 0:04:31]} Rd8 {[%emt 0:03:34]} 28. Qh6 {[%emt 0:09:32]} Ne8 {[%emt 0:02:48]} 29. Rh4 {[%emt 0:03:40]} Nf6 {[%emt 0:00:07]} 30. Rc6 {[%emt 0:02:23]} e6 {[%emt 0:00:20]} 31. Qf4 {[%emt 0:00:28]} Nxd5 {[%emt 0:00:53]} 32. Bxd5 {[%emt 0:00:13]} exd5 {[%emt 0:00:58]} 33. Rc7 {[%emt 0:00:22]} Qf5 {[%emt 0:00:29]} 34. Qh6 {[%emt 0:00:14]} g5 {[%emt 0:00:08]} 35. Rh5 {[%emt 0:00:00]} f6 {[%emt 0:00:57]} 36. Qg7# 1-0

[Event "46th GRE-chT Premier 2018"]
[Site "Rio Achaia"]
[Date "2018.07.11"]
[Round "3"]
[White "Mavrikakis, Georgios"]
[Black "Sandalakis, Nikolaos"]
[Result "1/2-1/2"]
[ECO "C56"]
[WhiteElo "2127"]
[BlackElo "2209"]
[Annotator "NA"]
[PlyCount "77"]
[EventDate "2018.07.10"]
[EventType "team-tourn"]
[EventCountry "GRE"]
[SourceTitle "playchess.com"]
[Source "ChessBase"]
[SourceQuality "1"]
[TimeControl "40/5400+30:1800+30"]

1. e4 {[%emt 0:02:32]} e5 {[%emt 0:00:00]} 2. Nf3 {[%emt 0:00:09]} Nc6 {[%emt 0:00:00]} 3. Bc4 {[%emt 0:00:07]} Nf6 {[%emt 0:00:08]} 4. d4 {[%emt 0:00:22]} exd4 {[%emt 0:01:06]} 5. O-O {[%emt 0:00:18]} Nxe4 {[%emt 0:01:02]} 6. Re1 {[%emt 0:00:13]} d5 {[%emt 0:00:03]} 7. Bxd5 {[%emt 0:00:06]} Qxd5 {[%emt 0:00:04]} 8. Nc3 {[%emt 0:00:07]} Qa5 {[%emt 0:02:11]} 9. Nxe4 {[%emt 0:00:16]} Be6 {[%emt 0:00:03]} 10. Neg5 {[%emt 0:00:14]} O-O-O {[%emt 0:02:54]} 11. Nxe6 {[%emt 0:00:28]} fxe6 {[%emt 0:01:51]} 12. Rxe6 {[%emt 0:00:09]} Qd5 {[%emt 0:15:48]} 13. Qe2 {[%emt 0:02:18]} Bd6 {[%emt 0:10:44]} 14. Qe4 {[%emt 0:21:29]} Qxe4 {[%emt 0:18:52]} 15. Rxe4 {[%emt 0:01:00]} Rhe8 {[%emt 0:01:20]} 16. Rxe8 {[%emt 0:01:21]} Rxe8 {[%emt 0:00:06]} 17. Bd2 {[%emt 0:00:54]} h6 {[%emt 0:04:03]} 18. Kf1 {[%emt 0:03:26]} Re6 {[%emt 0:04:02]} 19. Re1 {[%emt 0:01:56]} Kd7 {[%emt 0:00:50]} 20. Rxe6 {[%emt 0:05:49]} Kxe6 {[%emt 0:00:08]} 21. Ke2 {[%emt 0:00:20]} Kd5 {[%emt 0:07:57]} 22. Kd3 {[%emt 0:00:46]} b5 {[%emt 0:08:28]} 23. g4 {[%emt 0:05:20]} Ne5+ {[%emt 0:06:51]} 24. Nxe5 {[%emt 0:00:51]} Bxe5 {[%emt 0:00:03]} 25. f4 {[%emt 0:03:06]} Bf6 {[%emt 0:03:58]} 26. b4 {[%emt 0:06:18]} g6 {[%emt 0:03:32]} 27. Be1 {[%emt 0:11:00]} c6 {[%emt 0:05:02]} 28. Bf2 {[%emt 0:01:23]} a6 {[%emt 0:00:27]} 29. h3 {[%emt 0:00:16]} h5 {[%emt 0:01:42]} 30. Bg1 {[%emt 0:01:24]} hxg4 {[%emt 0:00:58]} 31. hxg4 {[%emt 0:00:08]} Bg7 {[%emt 0:00:38]} 32. Bf2 {[%emt 0:01:13]} Bf6 {[%emt 0:00:13]} 33. Bg1 {[%emt 0:01:13]} Bg7 {[%emt 0:00:27]} 34. Bf2 {[%emt 0:01:03]} Bf6 {[%emt 0:00:50]} 35. Bg1 {[%emt 0:00:40]} Bg7 {[%emt 0:00:20]} 36. Bf2 {[%emt 0:00:55]} Bf6 {[%emt 0:00:17]} 37. Bg1 {[%emt 0:02:36]} Bg7 {[%emt 0:00:07]} 38. Bf2 {[%emt 0:00:33]} Bf6 {[%emt 0:00:07]} 39. Bg1 {[%emt 0:00:21]} 1/2-1/2

[Event "46th GRE-chT Premier 2018"]
[Site "Rio Achaia"]
[Date "2018.07.11"]
[Round "3"]
[White "Drakopoulos, Polihronis"]
[Black "Markidis, Konstantinos"]
[Result "1/2-1/2"]
[ECO "A40"]
[WhiteElo "2105"]
[BlackElo "2329"]
[Annotator "NA"]
[PlyCount "82"]
[EventDate "2018.07.10"]
[EventType "team-tourn"]
[EventCountry "GRE"]
[SourceTitle "playchess.com"]
[Source "ChessBase"]
[SourceQuality "1"]
[TimeControl "40/5400+30:1800+30"]

1. d4 {[%emt 0:03:21]} Nf6 {[%emt 0:00:00]} 2. c4 {[%emt 0:00:29]} e6 {[%emt 0:02:36]} 3. g3 {[%emt 0:00:46]} Bb4+ {[%emt 0:04:44]} 4. Bd2 {[%emt 0:01:08]} a5 {[%emt 0:00:45]} 5. Bg2 {[%emt 0:00:24]} d6 {[%emt 0:02:17]} 6. e3 {[%emt 0:02:52]} O-O {[%emt 0:07:27]} 7. Ne2 {[%emt 0:01:45]} d5 {[%emt 0:07:03]} 8. O-O {[%emt 0:10:56]} c6 {[%emt 0:02:20]} 9. Bxb4 {[%emt 0:04:50]} axb4 {[%emt 0:00:07]} 10. Nd2 {[%emt 0:01:17]} b6 {[%emt 0:12:55]} 11. e4 {[%emt 0:09:46]} Na6 {[%emt 0:08:58]} 12. e5 {[%emt 0:06:57]} Ne8 {[%emt 0:04:08]} 13. f4 {[%emt 0:03:24]} Nec7 {[%emt 0:03:30]} 14. Qb3 {[%emt 0:13:53]} Bd7 {[%emt 0:03:57]} 15. Rfd1 {[%emt 0:08:42]} dxc4 {[%emt 0:09:55]} 16. Nxc4 {[%emt 0:01:47]} Nd5 {[%emt 0:00:53]} 17. Ne3 {[%emt 0:05:14]} Nxe3 {[%emt 0:05:10]} 18. Qxe3 {[%emt 0:00:05]} Nc7 {[%emt 0:00:26]} 19. Nc1 {[%emt 0:08:01]} Nd5 {[%emt 0:01:15]} 20. Qd2 {[%emt 0:01:27]} Ra5 {[%emt 0:04:14]} 21. Nb3 {[%emt 0:02:52]} Ra4 {[%emt 0:00:17]} 22. g4 {[%emt 0:03:30]} Qh4 {[%emt 0:00:31]} 23. h3 {[%emt 0:00:37]} h5 {[%emt 0:01:24]} 24. gxh5 {[%emt 0:04:26]} Qxf4 {[%emt 0:02:24]} 25. Qxf4 {[%emt 0:02:47]} Nxf4 {[%emt 0:00:07]} 26. Bf3 {[%emt 0:01:13]} Nxh3+ {[%emt 0:00:58]} 27. Kh2 {[%emt 0:00:02]} Nf4 {[%emt 0:00:18]} 28. Rg1 {[%emt 0:00:30]} f5 {[%emt 0:03:28]} 29. Kg3 {[%emt 0:00:52]} Nd5 {[%emt 0:02:18]} 30. Bxd5 {[%emt 0:00:07]} f4+ {[%emt 0:02:33]} 31. Kf3 {[%emt 0:00:22]} cxd5 {[%emt 0:00:45]} 32. h6 {[%emt 0:00:14]} Rf7 {[%emt 0:00:24]} 33. Rxg7+ {[%emt 0:00:20]} Rxg7 {[%emt 0:00:05]} 34. hxg7 {[%emt 0:00:03]} Kxg7 {[%emt 0:00:06]} 35. Rg1+ {[%emt 0:00:51]} Kf7 {[%emt 0:00:21]} 36. Nc1 {[%emt 0:00:11]} b3 {[%emt 0:00:59]} 37. Nxb3 {[%emt 0:00:18]} Rxa2 {[%emt 0:00:07]} 38. Rg2 {[%emt 0:00:27]} Bb5 {[%emt 0:00:52]} 39. Kxf4 {[%emt 0:01:04]} Ra4 {[%emt 0:01:10]} 40. Ke3 {[%emt 0:00:00]} Rb4 {[%emt 0:00:00]} 41. Nc1 {[%emt 0:05:17]} Ra4 1/2-1/2